lending/lending_fUSD_20250122
["ID","MTS","AMOUNT","RATE_DAILY","PERIOD"]
[349940159,1737523838730,-1326.9,0.00020269,2]
[349940160,1737523838739,-1654.632792,0.00020269,2]
[349940161,1737523838750,-667.2,0.00020269,2]
[349940162,1737523838760,-1068.160034,0.00020269,2]
[349940163,1737523838770,-500.0,0.00020269,2]
[349940164,1737523838779,-500.0,0.00020269,2]
[349940165,1737523838789,-500.0,0.00020269,2]
[349940166,1737523838798,-1328.69,0.00020269,2]
[349940167,1737523838808,-500.0,0.00020269,2]
[349940168,1737523838818,-1727.88,0.00020269,2]
[349940169,1737523838828,-655.78,0.00020269,2]
[349940170,1737523838839,-1152.1,0.00020269,2]
[349940171,1737523838849,-500.0,0.00020269,2]
[349940172,1737523838858,-598.33,0.00020269,2]
[349940173,1737523838868,-1734.84,0.00020269,2]
[349940174,1737523838878,-1029.42,0.00020269,2]
[349940175,1737523838888,-500.0,0.00020269,2]
[349940176,1737523838897,-500.0,0.00020269,2]
[349940177,1737523838907,-1068.91,0.00020269,2]
[349940178,1737523838916,-919.0,0.00020269,2]
[349940179,1737523838925,-500.0,0.00020269,2]
[349940180,1737523838936,-4385.22,0.00020269,2]
[349940181,1737523838946,-719.47,0.00020269,2]
[349940182,1737523838955,-1914.37,0.00020269,2]
[349940183,1737523838965,-151.0,0.00020269,2]
[349940184,1737523838974,-687.4,0.00020269,2]
[349940185,1737523838984,-1170.15,0.00020269,2]
[349940186,1737523838994,-500.0,0.00020269,2]
[349940187,1737523839004,-917.14,0.00020269,2]
[349940188,1737523839014,-954.32,0.00020269,2]
[349940189,1737523839024,-500.0,0.00020269,2]
[349940190,1737523839034,-758.35,0.00020269,2]
[349940191,1737523839044,-500.0,0.00020269,2]
[349940192,1737523839053,-2252.61,0.00020269,2]
[349940193,1737523839063,-983.48,0.00020269,2]
[349940194,1737523839072,-500.0,0.00020269,2]
[349940195,1737523839083,-500.0,0.00020269,2]
[349940196,1737523839092,-500.0,0.00020269,2]
[349940197,1737523839102,-1180.32,0.00020269,2]
[349940198,1737523839111,-1353.34,0.00020269,2]
[349940199,1737523839121,-1204.42,0.00020269,2]
[349940200,1737523839131,-1619.5,0.00020269,2]
[349940201,1737523839141,-1227.23,0.00020269,2]
[349940202,1737523839150,-1356.74,0.00020269,2]
[349940203,1737523839160,-513.56,0.00020269,2]
[349940204,1737523839170,-911.91,0.00020269,2]
[349940205,1737523839180,-2791.48,0.00020269,2]
[349940206,1737523839190,-500.0,0.00020269,2]
[349940207,1737523839200,-751.27,0.00020269,2]
[349940208,1737523839214,-564.05,0.00020269,2]
[349940209,1737523839224,-5598.51,0.00020269,2]
[349940210,1737523839233,-3246.76,0.00020269,2]
[349940211,1737523839244,-500.0,0.00020269,2]
[349940212,1737523839254,-1522.51,0.00020269,2]
[349940213,1737523839264,-2412.3,0.00020269,2]
[349940214,1737523839274,-894.13,0.00020269,2]
[349940215,1737523839285,-3330.53,0.00020269,2]
[349940216,1737523839296,-4103.62,0.00020269,2]
[349940217,1737523839305,-500.0,0.00020269,2]
[349940218,1737523839316,-1204.7,0.00020269,2]
[349940219,1737523839326,-4569.91,0.00020269,2]
[349940220,1737523839337,-826.02,0.00020269,2]
[349940221,1737523839347,-500.0,0.00020269,2]
[349940222,1737523839357,-500.0,0.00020269,2]
[349940223,1737523839367,-656.61,0.00020269,2]
[349940224,1737523839376,-1567.11,0.00020269,2]
[349940225,1737523839386,-412.77465,0.00020269,2]
[349940226,1737523839396,-4275.81,0.00020269,2]
[349940227,1737523839405,-505.12,0.00020269,2]
[349940228,1737523839414,-412.77465,0.00020269,2]
[349940229,1737523839424,-2412.01,0.00020269,2]
[349940230,1737523839433,-1332.26,0.00020269,2]
[349940231,1737523839442,-500.0,0.00020269,2]
[349940232,1737523839451,-5864.02,0.00020269,2]
[349940233,1737523839461,-1634.94,0.00020269,2]
[349940234,1737523839471,-1359.3,0.00020269,2]
[349940235,1737523839482,-534.51,0.00020269,2]
[349940236,1737523839493,-3348.56,0.00020269,2]
[349940237,1737523839503,-2818.04,0.00020269,2]
[349940238,1737523839512,-1462.29,0.00020269,2]
[349940239,1737523839522,-500.0,0.00020269,2]
[349940240,1737523839531,-1099.84,0.00020269,2]
[349940241,1737523839541,-500.0,0.00020269,2]
[349940242,1737523839552,-500.0,0.00020269,2]
[349940243,1737523839562,-500.0,0.00020269,2]
[349940244,1737523839571,-952.99,0.00020269,2]
[349940245,1737523839581,-527.75566491,0.00020269,2]
[349940246,1737523839591,-671.44,0.00020269,2]
[349940247,1737523839601,-500.0,0.00020269,2]
[349940248,1737523839610,-1542.32,0.00020269,2]
[349940249,1737523839620,-2696.68,0.00020269,2]
[349940250,1737523839630,-500.0,0.00020269,2]
[349940251,1737523839641,-500.0,0.00020269,2]
[349940252,1737523839651,-500.0,0.00020269,2]
[349940253,1737523839661,-658.77,0.00020269,2]
[349940254,1737523839671,-1833.25,0.00020269,2]
[349940255,1737523839681,-500.0,0.00020269,2]
[349940256,1737523839691,-1064.72,0.00020269,2]
[349940257,1737523839701,-670.84,0.00020269,2]
[349940258,1737523839710,-575.88,0.00020269,2]
[349940259,1737523839720,-2620.24,0.00020269,2]
[349940260,1737523839729,-500.0,0.0002027,2]
[349940261,1737523839739,-500.0,0.0002027,2]
[349940262,1737523839748,-500.0,0.0002027,2]
[349940263,1737523839758,-500.0,0.0002027,2]
[349940264,1737523839767,-500.0,0.0002027,2]
[349940265,1737523839778,-500.0,0.0002027,2]
[349940266,1737523839787,-500.0,0.0002027,2]
[349940267,1737523839797,-500.0,0.0002027,2]
[349940268,1737523839806,-500.0,0.0002027,2]
[349940269,1737523839816,-500.0,0.0002027,2]
[349940270,1737523839825,-500.0,0.0002027,2]
[349940271,1737523839835,-500.0,0.0002027,2]
[349940272,1737523839844,-500.0,0.0002027,2]
[349940273,1737523839854,-500.0,0.0002027,2]
[349940274,1737523839864,-500.0,0.0002027,2]
[349940275,1737523839873,-500.0,0.0002027,2]
[349940276,1737523839883,-500.0,0.0002027,2]
[349940277,1737523839892,-839.74,0.0002027,2]
[349940278,1737523839902,-500.0,0.0002027,2]
[349940279,1737523839912,-508.37,0.0002027,2]
[349940280,1737523839922,-202.887859,0.0002027,2]
[349940281,1737523839931,-500.0,0.0002027,2]
[349940282,1737523839941,-500.0,0.0002027,2]
[349940283,1737523839952,-500.0,0.0002027,2]
[349940285,1737523839962,-500.0,0.0002027,2]
[349940287,1737523839972,-500.0,0.0002027,2]
[349940289,1737523839982,-417.24242537,0.0002027,2]
[349940291,1737523839992,-500.0,0.0002027,2]
[349940293,1737523840002,-151.0,0.0002027,2]
[349940295,1737523840012,-500.0,0.0002027,2]
[349940297,1737523840022,-500.0,0.0002027,2]
[349940300,1737523840031,-500.0,0.0002027,2]
[349940301,1737523840041,-500.0,0.0002027,2]
[349940303,1737523840050,-500.0,0.0002027,2]
[349940305,1737523840059,-500.0,0.0002027,2]
[349940307,1737523840069,-500.0,0.0002027,2]
[349940310,1737523840079,-500.0,0.0002027,2]
[349940312,1737523840089,-500.0,0.0002027,2]
[349940313,1737523840098,-500.0,0.0002027,2]
[349940314,1737523840108,-500.0,0.0002027,2]
[349940315,1737523840118,-606.89,0.0002027,2]
[349940316,1737523840128,-500.0,0.0002027,2]
[349940317,1737523840138,-509.07509575,0.0002027,2]
[349940318,1737523840147,-598.84,0.0002027,2]
[349940319,1737523840157,-500.0,0.0002027,2]
[349940320,1737523840167,-500.0,0.0002027,2]
[349940321,1737523840176,-500.0,0.0002027,2]
[349940322,1737523840186,-500.0,0.0002027,2]
[349940323,1737523840196,-650.5,0.0002027,2]
[349940325,1737523840206,-500.0,0.0002027,2]
[349940326,1737523840218,-500.0,0.0002027,2]
[349940328,1737523840227,-500.0,0.0002027,2]
[349940330,1737523840236,-500.0,0.0002027,2]
[349940332,1737523840246,-507.32553183,0.0002027,2]
[349940334,1737523840256,-500.0,0.0002027,2]
[349940336,1737523840265,-500.0,0.0002027,2]
[349940338,1737523840275,-639.52,0.0002027,2]
[349940340,1737523840284,-500.0,0.0002027,2]
[349940342,1737523840295,-151.0,0.0002027,2]
[349940344,1737523840305,-500.0,0.0002027,2]
[349940346,1737523840315,-595.58,0.0002027,2]
[349940349,1737523840325,-502.45361303,0.0002027,2]
[349940351,1737523840335,-500.0,0.0002027,2]
[349940353,1737523840344,-500.0,0.0002027,2]
[349940355,1737523840354,-500.0,0.0002027,2]
[349940357,1737523840363,-500.0,0.0002027,2]
[349940359,1737523840373,-131.65299592,0.0002027,2]
[349940404,1737523840814,-368.34700408,0.0002027,2]
[349940406,1737523840825,-500.0,0.0002027,2]
[349940408,1737523840834,-500.0,0.0002027,2]
[349940410,1737523840844,-500.0,0.0002027,2]
[349940412,1737523840854,-154.642063,0.0002027,2]
[349940414,1737523840863,-375.77195228,0.0002027,2]
[349940417,1737523840877,-124.22804772,0.0002027,2]
[349940418,1737523840887,-500.0,0.0002027,2]
[349940420,1737523840896,-500.0,0.0002027,2]
[349940422,1737523840906,-500.0,0.0002027,2]
[349940424,1737523840915,-500.0,0.0002027,2]
[349940426,1737523840925,-500.0,0.0002027,2]
[349940428,1737523840934,-500.0,0.0002027,2]
[349940430,1737523840944,-500.0,0.0002027,2]
[349940432,1737523840953,-500.0,0.0002027,2]
[349940434,1737523840963,-885.16,0.0002027,2]
[349940436,1737523840973,-500.0,0.0002027,2]
[349940438,1737523840983,-500.0,0.0002027,2]
[349940440,1737523840993,-699.68,0.0002027,2]
[349940442,1737523841003,-500.0,0.0002027,2]
[349940444,1737523841012,-1204.8,0.0002027,2]
[349940446,1737523841022,-500.0,0.0002027,2]
[349940448,1737523841031,-356.1671777,0.0002027,2]
[349940449,1737523841041,-1117.52,0.0002027,2]
[349940451,1737523841051,-500.0,0.0002027,2]
[349940453,1737523841061,-523.82,0.0002027,2]
[349940455,1737523841071,-500.0,0.0002027,2]
[349940457,1737523841080,-500.0,0.0002027,2]
[349940459,1737523841089,-151.0,0.0002027,2]
[349940461,1737523841099,-500.0,0.0002027,2]
[349940463,1737523841108,-1451.35,0.0002027,2]
[349940465,1737523841120,-500.0,0.0002027,2]
[349940467,1737523841130,-500.0,0.0002027,2]
[349940469,1737523841139,-805.12,0.0002027,2]
[349940472,1737523841149,-500.0,0.0002027,2]
[349940473,1737523841158,-500.0,0.0002027,2]
[349940475,1737523841168,-1055.86,0.0002027,2]
[349940477,1737523841177,-500.0,0.0002027,2]
[349940479,1737523841186,-151.0,0.0002027,2]
[349940481,1737523841195,-151.0,0.0002027,2]
[349940483,1737523841204,-973.37,0.0002027,2]
[349940485,1737523841219,-152.45992,0.0002027,2]
[349940487,1737523841228,-500.0,0.0002027,2]
[349940489,1737523841237,-500.0,0.0002027,2]
[349940491,1737523841247,-962.68,0.0002027,2]
[349940493,1737523841258,-1169.83,0.0002027,2]
[349940495,1737523841267,-749.67,0.0002027,2]
[349940497,1737523841276,-778.75,0.0002027,2]
[349940499,1737523841286,-500.0,0.0002027,2]
[349940500,1737523841296,-651.5,0.0002027,2]
[349940501,1737523841305,-214.046571,0.0002027,2]
[349940502,1737523841314,-500.0,0.0002027,2]
[349940503,1737523841324,-500.0,0.0002027,2]
[349940504,1737523841333,-1050.63,0.0002027,2]
[349940505,1737523841342,-500.0,0.0002027,2]
[349940506,1737523841351,-500.0,0.0002027,2]
[349940507,1737523841360,-500.0,0.0002027,2]
[349940508,1737523841370,-762.01,0.0002027,2]
[349940509,1737523841380,-1388.8,0.0002027,2]
[349940510,1737523841389,-500.0,0.0002027,2]
[349940511,1737523841398,-671.08,0.0002027,2]
[349940512,1737523841408,-500.0,0.0002027,2]
[349940513,1737523841418,-500.0,0.0002027,2]
[349940514,1737523841427,-1297.31,0.0002027,2]
[349940515,1737523841437,-500.0,0.0002027,2]
[349940516,1737523841447,-500.0,0.0002027,2]
[349940517,1737523841456,-500.0,0.0002027,2]
[349940518,1737523841466,-500.0,0.0002027,2]
[349940519,1737523841475,-500.0,0.0002027,2]
[349940520,1737523841485,-500.0,0.0002027,2]
[349940521,1737523841495,-269.83,0.0002027,2]
[349940522,1737523841504,-500.0,0.0002027,2]
[349940523,1737523841514,-500.0,0.0002027,2]
[349940524,1737523841523,-500.0,0.0002027,2]
[349940525,1737523841533,-1089.26,0.0002027,2]
[349940526,1737523841543,-500.0,0.0002027,2]
[349940527,1737523841553,-500.0,0.0002027,2]
[349940528,1737523841563,-500.0,0.0002027,2]
[349940529,1737523841572,-500.0,0.0002027,2]
[349940530,1737523841582,-500.0,0.0002027,2]
[349940531,1737523841591,-500.0,0.0002027,2]
[349940532,1737523841601,-593.57,0.0002027,2]
[349940533,1737523841610,-500.0,0.0002027,2]
[349940534,1737523841620,-500.0,0.0002027,2]
[349940535,1737523841630,-794.83,0.0002027,2]
[349940536,1737523841639,-1034.03,0.0002027,2]
[349940537,1737523841648,-500.0,0.0002027,2]
[349940538,1737523841658,-500.0,0.0002027,2]
[349940539,1737523841667,-1240.54,0.0002027,2]
[349940540,1737523841677,-1117.23,0.0002027,2]
[349940541,1737523841686,-500.0,0.0002027,2]
[349940542,1737523841695,-500.0,0.0002027,2]
[349940543,1737523841704,-500.0,0.0002027,2]
[349940544,1737523841714,-500.0,0.0002027,2]
[349940545,1737523841723,-500.0,0.0002027,2]
[349940546,1737523841733,-749.13,0.0002027,2]
[349940547,1737523841742,-1219.78,0.0002027,2]
[349940548,1737523841752,-614.14239009,0.0002027,2]
[349940549,1737523841761,-500.0,0.0002027,2]
[349940550,1737523841771,-500.0,0.0002027,2]
[349940551,1737523841780,-500.0,0.0002027,2]
[349940552,1737523841791,-500.0,0.0002027,2]
[349940553,1737523841800,-500.0,0.0002027,2]
[349940554,1737523841809,-801.91,0.0002027,2]
[349940555,1737523841819,-500.0,0.0002027,2]
[349940556,1737523841829,-500.0,0.0002027,2]
[349940557,1737523841838,-566.49,0.0002027,2]
[349940558,1737523841848,-500.0,0.0002027,2]
[349940559,1737523841858,-500.0,0.0002027,2]
[349940560,1737523841867,-964.74,0.0002027,2]
[349940561,1737523841878,-679.76,0.0002027,2]
[349940562,1737523841888,-755.34,0.0002027,2]
[349940563,1737523841897,-500.0,0.0002027,2]
[349940564,1737523841907,-1442.71,0.0002027,2]
[349940565,1737523841917,-500.0,0.0002027,2]
[349940566,1737523841926,-500.0,0.0002027,2]
[349940567,1737523841935,-526.64,0.0002027,2]
[349940568,1737523841945,-500.0,0.0002027,2]
[349940569,1737523841955,-1180.75,0.0002027,2]
[349940570,1737523841965,-500.0,0.0002027,2]
[349940571,1737523841974,-1540.66,0.0002027,2]
[349940572,1737523841984,-500.0,0.0002027,2]
[349940573,1737523841993,-875.63,0.0002027,2]
[349940574,1737523842003,-2048.91,0.0002027,2]
[349940575,1737523842012,-500.0,0.0002027,2]
[349940576,1737523842022,-1240.04,0.0002027,2]
[349940577,1737523842032,-2888.97,0.0002027,2]
[349940578,1737523842042,-500.0,0.0002027,2]
[349940579,1737523842052,-500.0,0.0002027,2]
[349940580,1737523842061,-500.0,0.0002027,2]
[349940581,1737523842070,-6368.45,0.0002027,2]
[349940582,1737523842080,-569.02,0.0002027,2]
[349940583,1737523842089,-771.46,0.0002027,2]
[349940584,1737523842099,-500.0,0.0002027,2]
[349940585,1737523842109,-240.870537,0.0002027,2]
[349940586,1737523842119,-10836.86,0.0002027,2]
[349940587,1737523842129,-500.0,0.0002027,2]
[349940588,1737523842138,-500.0,0.0002027,2]
[349940589,1737523842147,-500.0,0.0002027,2]
[349940590,1737523842157,-1371.38,0.0002027,2]
[349940591,1737523842167,-151.0,0.0002027,2]
[349940592,1737523842177,-500.0,0.0002027,2]
[349940593,1737523842186,-850.32,0.0002027,2]
[349940594,1737523842196,-500.0,0.0002027,2]
[349940595,1737523842206,-245.91140189,0.0002027,2]
[349940596,1737523842246,-500.0,0.00019994,2]
[349940597,1737523842256,-254.08859811,0.0002027,2]
[349940598,1737523842265,-500.0,0.0002027,2]
[349940600,1737523842275,-789.6322704,0.0002027,2]
[349940601,1737523842286,-98.6377296,0.0002027,2]
[349940602,1737523842296,-163.16894915,0.0002027,2]
[349940603,1737523843249,-4133.82012291,0.00019895,2]
[349940604,1737523843260,-500.0,0.00019994,2]
[349940605,1737523843270,-500.0,0.00019994,2]
[349940606,1737523843279,-500.0,0.00019995,2]
[349940607,1737523843289,-15524.41219209,0.00019996,2]
[349940608,1737523843702,-500.0,0.00019995,2]
[349940609,1737523843712,-633.05,0.00019996,2]
[349940610,1737523843746,-2771.37769747,0.00019996,2]
[349940611,1737523843757,-1869.35785717,0.00019996,2]
[349940612,1737523844426,-500.0,0.00019994,2]
[349940613,1737523844436,-500.0,0.00019994,2]
[349940614,1737523844445,-500.0,0.00019994,2]
[349940615,1737523844455,-500.0,0.00019994,2]
[349940616,1737523844464,-9004.95586047,0.00019996,2]
[349940617,1737523844479,-12674.517128,0.00019996,2]
[349940618,1737523844490,-406.560008,0.00019996,2]
[349940619,1737523845434,-2791.85,0.00019994,2]
[349940620,1737523845444,-150.949685,0.00019995,2]
[349940621,1737523845452,-5712.86730926,0.00019996,2]
[349940622,1737523845495,-590.77264049,0.00019996,2]
[349940623,1737523845567,-2058.7914439,0.00019996,2]
[349940624,1737523845579,-309.7224929,0.00019996,2]
[349940625,1737523845590,-1271.919945,0.00019996,2]
[349940626,1737523845675,-1785.28735792,0.00019996,2]
[349940627,1737523845791,-316.38839588,0.00019996,2]
[349940628,1737524023454,237.0658,0.00024,120]
[349940629,1737524026456,212.38315011,0.00024,120]
[349940630,1737524059637,250.0,0.00019341,2]
[349940631,1737524162734,161.53,0.00019262,2]
[349940632,1737524259183,550.0,0.00015,2]
[349940634,1737524410695,153.42,0.00010137,2]
[349940636,1737524523098,192.73,0.00019147,2]
[349940637,1737524526615,376.0,0.00017229,2]
[349940638,1737524579334,1000.0,0.00019132,2]
[349940639,1737524615829,154.8,0.00019362,30]
[349940640,1737524839557,250.0,0.00019146,2]
[349940642,1737525031694,-250.0,0.00019383,2]
[349940643,1737525031705,-376.0,0.00019493,2]
[349940644,1737525031715,-280.88,0.00019508,2]
[349940645,1737525031725,-696.32174154,0.00019894,2]
[349940646,1737525031752,-871.88145614,0.00019894,2]
[349940647,1737525031813,-975.31245995,0.00019894,2]
[349940648,1737525031927,-549.49104237,0.00019894,2]
[349940649,1737525031937,-500.0,0.00019894,2]
[349940650,1737525031947,-781.1738,0.00019894,2]
[349940651,1737525031957,-1722.60878115,0.00019894,2]
[349940652,1737525031969,-229.3,0.000199,2]
[349940653,1737525031980,-1000.0,0.000199,2]
[349940654,1737525031992,-1005.0,0.000199,2]
[349940655,1737525032003,-1000.0,0.000199,2]
[349940656,1737525032017,-1000.0,0.000199,2]
[349940657,1737525032029,-1001.0,0.000199,2]
[349940658,1737525032038,-963.76017461,0.000199,2]
[349940659,1737525032051,-37.23982539,0.000199,2]
[349940660,1737525032061,-500.0,0.00019973,2]
[349940661,1737525032071,-152.04563662,0.00019973,2]
[349940662,1737525032080,-966.939,0.00019973,2]
[349940663,1737525032090,-500.0,0.00019992,2]
[349940664,1737525032100,-500.0,0.00019993,2]
[349940665,1737525032110,-759.35,0.00019993,2]
[349940666,1737525032121,-500.0,0.00019993,2]
[349940667,1737525032131,-500.0,0.00019993,2]
[349940668,1737525032141,-500.0,0.00019993,2]
[349940669,1737525032151,-502.84829027,0.00019993,2]
[349940670,1737525032161,-500.0,0.00019993,2]
[349940671,1737525032171,-500.0,0.00019993,2]
[349940672,1737525032181,-500.0,0.00019993,2]
[349940673,1737525032191,-945.59,0.00019993,2]
[349940674,1737525032201,-500.0,0.00019993,2]
[349940675,1737525032210,-1121.97,0.00019993,2]
[349940676,1737525032222,-500.0,0.00019993,2]
[349940677,1737525032231,-500.0,0.00019993,2]
[349940678,1737525032241,-758.12,0.00019993,2]
[349940679,1737525032251,-500.0,0.00019993,2]
[349940680,1737525032262,-348.97452444,0.00019993,2]
[349941298,1737525039824,-204.83879448,0.000199,2]
[349941300,1737525039834,-250.94547556,0.00019993,2]
[349941302,1737525039843,-874.99,0.00019993,2]
[349941304,1737525039852,-500.0,0.00019993,2]
[349941306,1737525039861,-554.2,0.00019993,2]
[349941308,1737525039870,-500.0,0.00019993,2]
[349941310,1737525039879,-1075.86,0.00019993,2]
[349941312,1737525039888,-1188.88,0.00019993,2]
[349941314,1737525039898,-500.0,0.00019993,2]
[349941316,1737525039907,-500.0,0.00019993,2]
[349941318,1737525039917,-500.0,0.00019993,2]
[349941320,1737525039925,-500.0,0.00019993,2]
[349941322,1737525039935,-229.65988322,0.00019993,2]
[349941406,1737525042831,-500.0,0.00019992,2]
[349941407,1737525042841,-812.38251678,0.00019993,2]
[349941408,1737525042850,-500.0,0.00019993,2]
[349941409,1737525042860,-500.0,0.00019993,2]
[349941410,1737525042870,-1603.986962,0.00019993,2]
[349941411,1737525042880,-1278.17,0.00019993,2]
[349941412,1737525042889,-156.159057,0.00019993,2]
[349941413,1737525042899,-722.43,0.00019993,2]
[349941414,1737525042909,-500.0,0.00019993,2]
[349941415,1737525042918,-162.29852,0.00019993,2]
[349941416,1737525042927,-627.55,0.00019993,2]
[349941417,1737525042937,-500.0,0.00019993,2]
[349941418,1737525042946,-632.43,0.00019993,2]
[349941419,1737525043152,-780.51,0.00019993,2]
[349941420,1737525043162,-500.0,0.00019993,2]
[349941421,1737525043172,-500.0,0.00019993,2]
[349941422,1737525043181,-500.0,0.00019993,2]
[349941423,1737525043191,-500.0,0.00019993,2]
[349941424,1737525043200,-500.0,0.00019993,2]
[349941425,1737525043210,-898.60007222,0.00019993,2]
[349941427,1737525045681,-59.02992778,0.00019993,2]
[349941428,1737525045691,-469.37007222,0.00019993,2]
[349941429,1737525045743,-30.62992778,0.00019993,2]
[349941430,1737525045753,-198.63105773,0.00019993,2]
[349941431,1737525045763,-500.0,0.00019993,2]
[349941432,1737525045773,-500.0,0.00019993,2]
[349941433,1737525045782,-1665.66,0.00019993,2]
[349941434,1737525045792,-631.69,0.00019993,2]
[349941435,1737525045801,-500.0,0.00019993,2]
[349941436,1737525045811,-500.0,0.00019993,2]
[349941437,1737525045821,-1109.32,0.00019993,2]
[349941438,1737525045830,-500.0,0.00019993,2]
[349941439,1737525045839,-500.0,0.00019993,2]
[349941440,1737525045849,-500.0,0.00019993,2]
[349941441,1737525045858,-500.0,0.00019993,2]
[349941442,1737525045868,-575.18,0.00019993,2]
[349941443,1737525045878,-500.0,0.00019993,2]
[349941444,1737525045888,-237.68299247,0.00019993,2]
[349941445,1737525045900,-1746.04,0.00019993,2]
[349941446,1737525045910,-331.66041002,0.00019993,2]
[349941447,1737525045934,-168.33958998,0.00019993,2]
[349941448,1737525045944,-1071.79,0.00019993,2]
[349941449,1737525045953,-500.0,0.00019993,2]
[349941450,1737525045962,-500.0,0.00019993,2]
[349941451,1737525045972,-1071.97,0.00019993,2]
[349941452,1737525045982,-500.0,0.00019993,2]
[349941453,1737525045991,-500.0,0.00019993,2]
[349941454,1737525046000,-500.0,0.00019993,2]
[349941455,1737525046009,-505.55660813,0.00019993,2]
[349941456,1737525046018,-500.0,0.00019993,2]
[349941457,1737525046028,-504.168423,0.00019993,2]
[349941458,1737525046038,-521.36450061,0.00019993,2]
[349941459,1737525046047,-106.04970668,0.00019993,2]
[349941460,1737525046067,-393.95029332,0.00019993,2]
[349941461,1737525046076,-500.0,0.00019993,2]
[349941462,1737525046086,-506.39769891,0.00019993,2]
[349941463,1737525046095,-500.0,0.00019993,2]
[349941464,1737525046104,-1163.61,0.00019993,2]
[349941465,1737525046114,-500.0,0.00019993,2]
[349941466,1737525046123,-78.6248824,0.00019993,2]
[349941467,1737525072451,250.0,0.00019314,2]
[349941468,1737525083017,162.92,0.00019314,2]
[349941469,1737525091390,395.48180449,0.00018822,2]
[349941472,1737525122057,160.758,0.0001926,2]
[349941473,1737525122488,500.0,0.00018822,2]
[349941474,1737525155060,203.43,0.00019149,2]
[349941475,1737525242383,161.53,0.00019151,2]
[349941476,1737525401268,163.97,0.00010137,2]
[349941478,1737525448791,368.85,0.00017157,2]
[349941479,1737525503783,1000.0,0.00019058,2]
[349941480,1737525653428,171.52,0.00019211,30]
[349941481,1737525741127,150.0,0.00018989,2]
[349941482,1737525771327,177.13,0.00024,120]
[349941483,1737525832559,1704.24,0.0001899,2]
[349941484,1737525925330,250.0,0.00018988,2]
[349941485,1737525925454,1808.0,0.00019,3]
[349941486,1737526041290,492.0,0.00019202,2]
[349941487,1737526048502,224.7,0.00018979,2]
[349941488,1737526107115,1852.42,0.00018979,2]
[349941491,1737526142063,161.53,0.00018984,2]
[349941493,1737526231940,-333.21960545,0.000194,2]
[349941494,1737526231951,-266.78039455,0.000194,2]
[349941495,1737526231964,-1400.0,0.000194,2]
[349941496,1737526231973,-368.85,0.0001942,2]
[349941497,1737526231983,-162.89,0.00019612,2]
[349941498,1737526231992,-3000.0,0.0001979,2]
[349941499,1737526232002,-3000.0,0.0001979,2]
[349941500,1737526232012,-3000.0,0.0001983,2]
[349941501,1737526232021,-649.7117865,0.00019864,2]
[349941502,1737526232031,-3720.43811061,0.00019891,2]
[349941503,1737526232040,-1550.34790299,0.00019891,2]
[349941504,1737526232049,-299.30656806,0.00019892,2]
[349941505,1737526232059,-500.0,0.00019893,2]